bitfinex-derivatives/quotes_BTCF0:USTF0_20251011
["timestamp","ask_amount","ask_price","bid_price","bid_amount"]
[1760148269740,0.089378,111750.0,111740.0,0.01968]
[1760148269946,0.089378,111750.0,111740.0,0.08968]
[1760148269947,0.81105578,111750.0,111740.0,0.08968]
[1760148270149,0.089394,111730.0,111720.0,0.01968]
[1760148270341,0.08947178,111730.0,111720.0,0.03968]
[1760148270641,0.85027178,111730.0,111720.0,0.03968]
[1760148270840,0.08941,111710.0,111700.0,0.01968]
[1760148271147,0.45028778,111710.0,111700.0,0.12968]
[1760148271747,0.85028778,111710.0,111700.0,0.12968]
[1760148272152,0.089426,111690.0,111680.0,0.01968]
[1760148272340,0.450226,111690.0,111680.0,0.14968]
[1760148272546,0.08950378,111690.0,111680.0,0.14968]
[1760148272953,0.45030378,111690.0,111680.0,0.14968]
[1760148273248,0.85030378,111690.0,111680.0,0.14968]
[1760148274250,0.71830378,111690.0,111680.0,0.14968]
[1760148274445,0.80772978,111690.0,111680.0,0.14968]
[1760148274646,0.089434,111680.0,111670.0,7.595e-05]
[1760148274847,0.450234,111680.0,111670.0,0.09007595]
[1760148275048,0.449234,111680.0,111670.0,0.09007595]
[1760148275644,0.849234,111680.0,111670.0,0.09007595]
[1760148275947,0.850234,111680.0,111670.0,5e-08]
[1760148276541,0.849234,111680.0,111670.0,5e-08]
[1760148277052,0.44930995,111680.0,111670.0,5e-08]
[1760148277249,0.84930995,111680.0,111670.0,5e-08]
[1760148277651,0.849234,111680.0,111670.0,5e-08]
[1760148278350,0.450234,111680.0,111670.0,5e-08]
[1760148278558,0.45030995,111680.0,111670.0,5e-08]
[1760148279655,0.850234,111680.0,111670.0,5e-08]
[1760148281155,0.45030995,111680.0,111670.0,5e-08]
[1760148281959,0.28630995,111680.0,111670.0,5e-08]
[1760148282155,0.09050995,111680.0,111670.0,5e-08]
[1760148282454,0.08950995,111680.0,111670.0,5e-08]
[1760148283050,0.09050995,111680.0,111670.0,5e-08]
[1760148283648,0.45130995,111680.0,111670.0,5e-08]
[1760148283853,0.09050995,111680.0,111670.0,5e-08]
[1760148284151,0.09050995,111680.0,111670.0,0.40000005]
[1760148284550,0.08950995,111680.0,111670.0,5e-08]
[1760148284852,0.45030995,111680.0,111670.0,5e-08]
[1760148285657,0.09150995,111680.0,111670.0,5e-08]
[1760148286054,0.00207595,111680.0,111670.0,0.36080005]
[1760148286256,0.00207595,111680.0,111670.0,1.17758774]
[1760148286555,0.00207595,111680.0,111670.0,1.26702974]
[1760148286752,0.0894217,111700.0,111670.0,1.26702974]
[1760148286957,0.0894217,111700.0,111680.0,0.79673769]
[1760148287257,0.40842002,111730.0,111700.0,0.01915]
[1760148287452,0.089394,111730.0,111720.0,0.01915]
[1760148287648,0.089394,111730.0,111720.0,0.38995]
[1760148287854,0.0893842,111750.0,111740.0,0.01915]
[1760148288348,0.0893842,111750.0,111740.0,0.37995]
[1760148288550,0.0893842,111750.0,111740.0,0.03915]
[1760148288752,0.0893842,111750.0,111740.0,0.81673769]
[1760148288948,0.13698202,111770.0,111760.0,0.01915]
[1760148289154,0.13698202,111770.0,111760.0,0.02915]
[1760148289360,0.13698202,111770.0,111760.0,0.38995]
[1760148289550,0.53698202,111770.0,111760.0,0.02915]
[1760148289756,0.850162,111770.0,111760.0,0.02915]
[1760148290050,0.850162,111770.0,111760.0,0.01915]
[1760148290249,0.850162,111770.0,111740.0,0.01915]
[1760148290250,0.089378,111750.0,111740.0,0.01915]
[1760148290459,0.450178,111750.0,111740.0,0.08915]
[1760148290662,0.850178,111750.0,111740.0,0.08915]
[1760148291058,1.210978,111750.0,111740.0,1e-07]
[1760148292958,0.089394,111730.0,111720.0,1e-07]
[1760148293166,0.08941,111710.0,111700.0,0.01915]
[1760148293458,0.81101,111710.0,111700.0,0.08915]
[1760148293765,0.089426,111690.0,111680.0,0.02002867]
[1760148293956,0.450226,111690.0,111680.0,0.10002867]
[1760148294152,0.089426,111690.0,111680.0,0.10002867]
[1760148294353,0.450226,111690.0,111680.0,0.10002867]
[1760148294854,0.089426,111690.0,111680.0,0.10002867]
[1760148295253,0.450226,111690.0,111680.0,0.10002867]
[1760148295561,0.089426,111690.0,111680.0,0.10002867]
[1760148295760,0.090426,111690.0,111680.0,0.10002867]
[1760148296169,0.451226,111690.0,111680.0,0.10002867]
[1760148296464,0.090426,111690.0,111680.0,0.10002867]
[1760148296665,0.3608,111690.0,111680.0,0.10002867]
[1760148296861,0.850226,111690.0,111680.0,0.05282817]
[1760148297058,0.850226,111690.0,111680.0,0.01152737]
[1760148297260,0.850226,111690.0,111680.0,7e-08]
[1760148298266,0.89899632,111690.0,111680.0,7e-08]
[1760148300262,0.089442,111670.0,111660.0,0.01994]
[1760148300467,0.450242,111670.0,111660.0,0.01994]
[1760148300667,0.45031323,111670.0,111660.0,0.01994]
[1760148301168,0.45031323,111670.0,111660.0,0.38074]
[1760148301169,0.08951323,111670.0,111660.0,0.38074]
[1760148301370,7.123e-05,111670.0,111660.0,0.38074]
[1760148301572,7.123e-05,111670.0,111660.0,0.79074]
[1760148301769,0.08951323,111670.0,111660.0,0.39074]
[1760148302072,0.45031323,111670.0,111660.0,0.01994]
[1760148302467,0.0894581,111650.0,111640.0,0.01994]
[1760148302668,6.927e-05,111650.0,111640.0,0.39074]
[1760148303271,0.08952737,111650.0,111640.0,0.39074]
[1760148303466,0.08952737,111650.0,111640.0,0.02994]
[1760148303668,0.08952737,111650.0,111640.0,0.01994]
[1760148304268,0.45032737,111650.0,111640.0,0.01994]
[1760148304868,0.08952737,111650.0,111640.0,0.01994]
[1760148305269,0.45032737,111650.0,111640.0,0.01994]
[1760148305773,0.08952737,111650.0,111640.0,0.01994]
[1760148305974,0.45032737,111650.0,111640.0,0.01994]
[1760148307269,0.0894741,111630.0,111620.0,0.01994]
[1760148307574,0.45036277,111630.0,111620.0,0.01994]
[1760148307869,0.08956277,111630.0,111620.0,0.01994]
[1760148308074,0.45036277,111630.0,111620.0,0.01994]
[1760148308468,0.08956277,111630.0,111620.0,0.01994]
[1760148308869,0.45036277,111630.0,111620.0,0.01994]
[1760148309069,8.867e-05,111630.0,111620.0,0.79074]
[1760148309569,8.867e-05,111630.0,111620.0,0.39074]
[1760148309768,8.867e-05,111630.0,111620.0,0.02994]
[1760148309769,0.08956277,111630.0,111620.0,0.02994]
[1760148310177,0.45036277,111630.0,111620.0,0.02994]
[1760148310571,8.867e-05,111630.0,111620.0,0.79074]
[1760148310770,0.08956277,111630.0,111620.0,0.79074]
[1760148311073,8.867e-05,111630.0,111620.0,0.79074]
[1760148311275,8.867e-05,111630.0,111620.0,0.8802221]
[1760148311479,0.0894581,111650.0,111640.0,0.01868]
[1760148311672,0.0894581,111650.0,111640.0,0.86028]
[1760148312381,0.00155936,111650.0,111640.0,1.3497461]
[1760148312878,0.0894318,111690.0,111680.0,0.01868]
[1760148313075,0.4502109,111710.0,111700.0,0.01868]
[1760148313076,0.13718032,111710.0,111700.0,0.01868]
[1760148313269,0.08941,111710.0,111700.0,0.01868]
[1760148313775,0.089426,111690.0,111680.0,0.01868]
[1760148313975,0.091426,111690.0,111680.0,0.37948]
[1760148314772,0.089426,111690.0,111680.0,0.01868]
[1760148314974,0.090426,111690.0,111680.0,0.37948]
[1760148315174,0.090426,111690.0,111680.0,0.38948]
[1760148315569,0.001,111690.0,111680.0,0.78948]
[1760148315774,0.090426,111690.0,111680.0,0.78948]
[1760148316472,0.090426,111690.0,111680.0,0.42868]
[1760148316674,0.090426,111690.0,111680.0,0.78948]
[1760148317373,1.20308643,111690.0,111660.0,0.37948]
[1760148317572,0.71574923,111670.0,111640.0,0.01868]
[1760148317771,0.71574923,111670.0,111640.0,0.37948]
[1760148317976,0.08945,111660.0,111650.0,0.3608]
[1760148318578,0.0894438,111670.0,111660.0,0.01868]
[1760148318777,0.0894438,111670.0,111660.0,0.37948]
[1760148319173,0.0894438,111670.0,111660.0,0.01868]
[1760148319375,0.4894438,111670.0,111660.0,0.01868]
[1760148320072,0.089458,111650.0,111640.0,0.37948]
[1760148320279,0.0894429,111670.0,111660.0,0.01868]
[1760148320576,0.001,111670.0,111660.0,0.75028]
[1760148320778,0.001,111670.0,111660.0,1.15028]
[1760148320979,0.090442,111670.0,111660.0,0.38948]
[1760148321277,0.089442,111670.0,111660.0,0.38948]
[1760148322479,0.089442,111670.0,111660.0,0.02868]
[1760148322676,0.090442,111670.0,111660.0,0.38916816]
[1760148322974,0.090442,111670.0,111660.0,0.02836816]
[1760148323183,0.090442,111670.0,111660.0,0.01836816]
[1760148323379,0.851242,111670.0,111640.0,0.37948]
[1760148323584,0.089458,111650.0,111640.0,0.38948]
[1760148324082,0.001,111670.0,111660.0,0.01868]
[1760148324379,0.0904489,111670.0,111660.0,0.37948]
[1760148324583,0.0904489,111670.0,111660.0,0.01868]
[1760148324780,0.0904489,111670.0,111660.0,0.40195422]
[1760148325083,0.8512489,111670.0,111660.0,0.01868]
[1760148325486,0.4894489,111670.0,111660.0,0.01868]
[1760148325682,0.0894489,111670.0,111660.0,0.01868]
[1760148325983,0.0894489,111670.0,111660.0,0.78948]
[1760148326575,0.12138118,111690.0,111680.0,0.01868]
[1760148326778,0.0894319,111690.0,111680.0,0.38948]
[1760148327393,0.0894319,111690.0,111680.0,0.02868]
[1760148327689,0.12239109,111690.0,111680.0,0.02868]
[1760148328585,0.12239109,111690.0,111680.0,0.38948]
[1760148328980,0.03295919,111690.0,111680.0,0.78948]
[1760148329179,0.089426,111690.0,111680.0,0.38948]
[1760148329383,0.090426,111690.0,111680.0,0.78948]
[1760148329586,0.001,111690.0,111680.0,0.78948]
[1760148329786,0.090426,111690.0,111680.0,0.78948]
[1760148330086,0.090426,111690.0,111680.0,0.38948]
[1760148330681,0.001,111690.0,111680.0,0.38948]
[1760148331083,0.001,111690.0,111680.0,0.78948]
[1760148331381,0.001,111690.0,111680.0,1.14442923]
[1760148331582,0.001,111690.0,111680.0,0.78948]
[1760148331782,0.090426,111690.0,111680.0,0.38948]
[1760148332287,0.090426,111690.0,111680.0,0.02868]
[1760148332487,0.089434,111680.0,111670.0,0.01868]
[1760148332686,0.089434,111680.0,111670.0,0.03868]
[1760148332888,0.12137976,111680.0,111670.0,0.03868]
[1760148333184,0.12237496,111690.0,111680.0,0.01868]
[1760148333380,0.12237496,111690.0,111680.0,0.13868]
[1760148333783,0.12137496,111690.0,111680.0,0.13868]
[1760148334187,0.40871865,111700.0,111680.0,0.89948]
[1760148334188,0.03194576,111700.0,111680.0,0.89948]
[1760148334492,0.0893865,111740.0,111730.0,0.01868]
[1760148334685,0.03194576,111740.0,111730.0,0.13868]
[1760148334894,0.13730465,111740.0,111730.0,0.13868]
[1760148335484,0.16921592,111740.0,111730.0,0.49948]
[1760148335684,0.13730465,111740.0,111730.0,0.13868]
[1760148335887,0.89810465,111740.0,111730.0,0.13868]
[1760148336089,0.53730465,111740.0,111730.0,0.13868]
[1760148336288,0.089386,111740.0,111730.0,0.13868]
[1760148336593,0.13721762,111740.0,111730.0,0.13868]
[1760148336785,0.03389095,111740.0,111730.0,0.49948]
[1760148336986,0.12327685,111740.0,111730.0,0.49948]
[1760148337291,0.03389095,111740.0,111730.0,0.89948]
[1760148337488,0.03189095,111740.0,111730.0,0.89948]
[1760148337691,0.03289095,111740.0,111730.0,0.89948]
[1760148338286,0.001,111740.0,111730.0,0.89948]
[1760148338891,0.001,111740.0,111730.0,0.9888739]
[1760148339292,0.07972257,111780.0,111750.0,0.0893751]
[1760148339491,0.12124535,111780.0,111770.0,0.3608]
[1760148339694,0.03189095,111780.0,111770.0,0.4008]
[1760148339993,0.12124495,111780.0,111770.0,0.4008]
[1760148340190,0.12124005,111790.0,111780.0,0.01924]
[1760148340495,0.12123695,111790.0,111780.0,0.42004]
[1760148340791,0.92986857,111790.0,111780.0,0.04]
[1760148340989,0.089362,111770.0,111760.0,0.01924]
[1760148341187,0.12118163,111780.0,111760.0,0.38004]
[1760148341388,0.089362,111770.0,111760.0,0.01924]
[1760148341587,0.04783162,111790.0,111780.0,0.01924]
[1760148341796,0.4819618,111790.0,111780.0,0.01924]
[1760148341984,0.4819618,111790.0,111760.0,0.01924]
[1760148342288,0.4819618,111790.0,111750.0,0.3608]
[1760148342289,0.0893699,111760.0,111750.0,0.3608]
[1760148342484,0.0893779,111750.0,111740.0,0.3608]
[1760148342882,0.0893859,111740.0,111730.0,0.01868]
[1760148343496,0.1211832,111760.0,111730.0,0.77948]
[1760148343694,0.0893779,111750.0,111740.0,0.3608]
[1760148343894,0.1211783,111770.0,111760.0,0.01924]
[1760148344196,0.4819783,111770.0,111760.0,0.01924]
[1760148344399,0.0893699,111760.0,111750.0,0.3608]
[1760148344798,0.0893779,111750.0,111740.0,0.3608]
[1760148344997,0.4501779,111750.0,111740.0,0.01]
[1760148345193,0.0893779,111750.0,111740.0,0.3708]
[1760148346193,0.8501779,111750.0,111740.0,0.01]
[1760148346388,0.4893779,111750.0,111740.0,0.01]
[1760148346588,0.8501779,111750.0,111740.0,0.01]
[1760148346794,0.4893779,111750.0,111740.0,0.01]
[1760148347298,0.8501779,111750.0,111740.0,0.01]
[1760148347501,0.089394,111730.0,111720.0,0.01868]
[1760148348588,0.489394,111730.0,111720.0,0.01868]
[1760148348793,0.089402,111720.0,111710.0,0.3608]
[1760148349002,0.08941,111710.0,111700.0,0.38004]
[1760148349195,0.0894054,111720.0,111700.0,0.39004]
[1760148349395,0.0894054,111720.0,111700.0,0.38004]
[1760148349904,0.08841,111710.0,111700.0,0.01924]
[1760148350197,0.08941,111710.0,111700.0,0.38004]
[1760148350399,0.08941,111710.0,111700.0,0.01924]
[1760148350795,0.08941,111710.0,111700.0,0.02024]
[1760148350997,0.089426,111690.0,111680.0,0.38013063]
[1760148351196,0.089426,111690.0,111680.0,0.39013063]
[1760148351496,0.089426,111690.0,111680.0,0.01933063]
[1760148351701,0.850226,111690.0,111680.0,9.063e-05]
[1760148352204,0.1212342,111700.0,111680.0,0.01962063]
[1760148352502,0.089426,111690.0,111680.0,0.37979706]
[1760148352698,0.0894208,111700.0,111680.0,0.37979706]
[1760148353006,0.08941,111710.0,111700.0,0.01962]
[1760148353498,0.08947788,111710.0,111700.0,0.01962]
[1760148354001,0.45027788,111710.0,111700.0,0.01962]
[1760148354194,0.85027788,111710.0,111700.0,0.01962]
[1760148354500,0.88208908,111710.0,111700.0,0.001]
[1760148354894,0.089426,111690.0,111680.0,0.37979706]
[1760148355202,9.063e-05,111690.0,111680.0,0.38979706]
[1760148355702,9.063e-05,111690.0,111680.0,0.87923106]
[1760148356097,0.0893985,111730.0,111690.0,0.0894216]
[1760148356304,0.089394,111730.0,111720.0,0.38042]
[1760148356499,0.089394,111730.0,111720.0,0.01962]
[1760148356700,0.089394,111730.0,111720.0,0.38042]
[1760148357202,0.089394,111730.0,111720.0,0.01962]
[1760148357595,0.08941,111710.0,111700.0,0.01962]
[1760148357800,0.08941,111710.0,111700.0,0.40042]
[1760148358001,0.0894053,111720.0,111700.0,0.42314812]
[1760148358201,0.3608,111740.0,111720.0,0.01962]
[1760148358400,0.0893878,111740.0,111720.0,0.39042]
[1760148358903,0.089394,111730.0,111720.0,0.02962]
[1760148359098,0.3608,111750.0,111720.0,0.39042]
[1760148359399,0.3608,111770.0,111740.0,0.38042]
[1760148359603,0.0893777,111750.0,111740.0,0.39042]
[1760148359797,0.4501777,111750.0,111740.0,0.02962]
[1760148360002,0.0893776,111750.0,111740.0,0.38042]
[1760148360399,0.0893756,111760.0,111740.0,0.80042]
[1760148360601,0.0893616,111770.0,111760.0,0.01962]
[1760148360798,0.0893616,111770.0,111760.0,0.47042]
[1760148360993,0.0893776,111750.0,111740.0,0.01962]
[1760148361198,0.0903776,111750.0,111740.0,0.02962]
[1760148361900,0.0903776,111750.0,111740.0,0.01962]
[1760148362105,0.0893936,111730.0,111720.0,0.38042]
[1760148362302,0.0893936,111730.0,111720.0,0.02962]
[1760148362504,0.0893903,111740.0,111720.0,0.39042]
[1760148362809,0.0893903,111740.0,111730.0,0.3608]
[1760148363101,0.0893936,111730.0,111720.0,0.01962]
[1760148363301,0.0893936,111730.0,111720.0,0.42042]
[1760148363499,0.0893936,111730.0,111720.0,0.05962]
[1760148363703,0.0893936,111730.0,111720.0,0.42042]
[1760148364094,0.71574923,111750.0,111720.0,0.82042]
[1760148364095,0.0893865,111740.0,111720.0,0.82042]
[1760148364404,0.0893865,111740.0,111730.0,0.3608]
[1760148364605,0.0893865,111740.0,111730.0,0.4008]
[1760148364801,0.0893936,111730.0,111720.0,0.01962]
[1760148364996,0.0894096,111710.0,111700.0,0.38042]
[1760148365199,0.0894096,111710.0,111700.0,0.01962]
[1760148365405,0.8502096,111710.0,111700.0,0.01962]
[1760148365801,0.0894256,111690.0,111680.0,0.01962]
[1760148366004,0.0894256,111690.0,111660.0,0.0436414]
[1760148366005,0.0894417,111670.0,111660.0,0.01962]
[1760148366303,0.4502417,111670.0,111660.0,0.01962]
[1760148366607,0.80519093,111670.0,111660.0,0.01962]
[1760148366804,0.089458,111650.0,111640.0,0.38049581]
[1760148367105,0.087458,111650.0,111640.0,0.01969581]
[1760148367702,0.35494923,111670.0,111640.0,0.39049581]
[1760148367901,0.089458,111650.0,111640.0,0.02969581]
[1760148368101,0.089458,111650.0,111640.0,0.38249581]
[1760148368512,0.40863162,111690.0,111660.0,0.01766]
[1760148368699,0.0894419,111670.0,111660.0,0.38846]
[1760148368901,0.0894419,111670.0,111660.0,0.01766]
[1760148370298,0.69119113,111680.0,111660.0,0.38846]
[1760148370506,0.0894208,111700.0,111680.0,0.01766]
[1760148370706,0.0894208,111700.0,111690.0,0.3608]
[1760148371009,0.0894259,111690.0,111680.0,0.01766]
[1760148371202,0.0894259,111690.0,111680.0,0.38846]
[1760148371602,0.08942,111700.0,111680.0,0.38846]
[1760148371904,0.0894259,111690.0,111680.0,0.02766]
[1760148372111,0.50615141,111690.0,111680.0,0.01766]
[1760148372302,0.4894259,111690.0,111680.0,0.01766]
[1760148372505,0.0894259,111690.0,111680.0,0.02766]
[1760148372701,0.4502078,111720.0,111700.0,0.01766]
[1760148372906,0.0894099,111710.0,111700.0,0.50846]
[1760148373403,0.0894099,111710.0,111700.0,0.14766]
[1760148373606,0.40863162,111730.0,111700.0,0.50846]
[1760148373810,0.0893939,111730.0,111720.0,0.01766]
[1760148374015,0.0893939,111730.0,111720.0,0.02766]
[1760148374214,0.0893939,111730.0,111720.0,0.01766]
[1760148374507,0.0893939,111730.0,111720.0,0.02766]
[1760148375513,0.50611941,111730.0,111720.0,0.02766]
[1760148375709,0.0893939,111730.0,111720.0,0.02766]
[1760148376107,0.0894099,111710.0,111700.0,0.01766]
[1760148376308,0.0894099,111710.0,111700.0,0.37846]
[1760148376819,0.4894099,111710.0,111700.0,0.37846]
[1760148377113,0.4894099,111710.0,111700.0,0.01766]
[1760148377316,0.8502099,111710.0,111700.0,0.01766]
[1760148377515,0.0894099,111710.0,111700.0,0.51846]
[1760148377712,0.48215529,111730.0,111720.0,0.01766]
[1760148377911,0.4501999,111730.0,111720.0,0.01766]
[1760148378119,0.03195539,111730.0,111720.0,0.37846]
[1760148378320,0.5380688,111740.0,111720.0,0.49846]
[1760148378516,0.94669202,111750.0,111720.0,0.49846]
[1760148378719,0.3608,111760.0,111740.0,0.37846]
[1760148378720,0.03195539,111760.0,111740.0,0.37846]
[1760148378915,0.50608741,111770.0,111760.0,0.01766]
[1760148379115,0.50608741,111770.0,111760.0,0.37846]
[1760148379612,0.0893779,111750.0,111740.0,0.37846]
[1760148379818,0.41672551,111760.0,111740.0,0.38846]
[1760148380019,0.0893779,111750.0,111740.0,0.38846]
[1760148380516,0.002,111760.0,111740.0,0.38846]
[1760148380712,0.0893405,111800.0,111760.0,0.01766]
[1760148380913,0.0893458,111790.0,111780.0,0.37846]
[1760148381112,0.50606551,111800.0,111780.0,0.37846]
[1760148381420,0.3608,111810.0,111800.0,0.01766]
[1760148381421,0.50605671,111810.0,111800.0,0.01766]
[1760148381608,0.3608,111830.0,111800.0,0.38846]
[1760148381609,0.46455713,111830.0,111800.0,0.38846]
[1760148381816,0.77752551,111810.0,111780.0,0.37846]
[1760148382115,0.0893224,111820.0,111800.0,0.37846]
[1760148382312,0.4501155,111830.0,111820.0,0.01766]
[1760148382615,0.50604101,111830.0,111820.0,0.01766]
[1760148383715,0.0893219,111820.0,111810.0,0.3608]
[1760148383920,0.0893299,111810.0,111800.0,0.37846]
[1760148384118,0.0893299,111810.0,111800.0,0.03766]
[1760148384419,0.4501234,111820.0,111800.0,0.39846]
[1760148384715,0.50904011,111830.0,111810.0,0.3608]
[1760148385417,0.0893146,111830.0,111810.0,0.3608]
[1760148385717,0.41872551,111820.0,111810.0,0.3608]
[1760148385919,0.50804741,111820.0,111800.0,0.37846]
[1760148386114,0.50804741,111820.0,111800.0,0.50846]
[1760148386315,0.50604741,111820.0,111800.0,0.50846]
[1760148386821,0.77952551,111830.0,111800.0,0.50846]
[1760148387010,0.41672551,111820.0,111800.0,0.50846]
[1760148387216,0.41872551,111820.0,111800.0,0.50846]
[1760148387410,0.002,111820.0,111800.0,0.50846]
[1760148387822,0.002,111820.0,111810.0,0.3608]
[1760148388021,0.002,111820.0,111810.0,0.4808]
[1760148388718,0.41672551,111830.0,111810.0,0.4808]
[1760148388915,0.0893299,111810.0,111800.0,0.01766]
[1760148389119,0.50605541,111810.0,111800.0,0.01766]
[1760148389313,0.50804031,111830.0,111800.0,0.39846]
[1760148389621,0.4501114,111840.0,111820.0,0.37846]
[1760148389921,0.50603691,111840.0,111820.0,0.37846]
[1760148390122,0.40863162,111870.0,111840.0,0.01766]
[1760148390321,0.40863162,111870.0,111850.0,0.3608]
[1760148390322,0.04783162,111870.0,111850.0,0.3608]
[1760148390618,0.089285,111870.0,111850.0,0.3608]
[1760148390812,0.450085,111870.0,111850.0,0.3608]
[1760148391016,0.86681051,111870.0,111850.0,0.3608]
[1760148391412,0.77752551,111870.0,111850.0,0.3608]
[1760148391615,0.49790332,111890.0,111880.0,0.01766]
[1760148391823,0.0892751,111880.0,111860.0,0.37846]
[1760148392015,0.001,111870.0,111860.0,0.37846]
[1760148392322,0.001,111870.0,111860.0,0.38846]
[1760148392726,0.002,111890.0,111880.0,0.01766]
[1760148393424,0.002,111890.0,111880.0,0.39846]
[1760148393626,0.41672551,111910.0,111900.0,0.01766]
[1760148394017,0.50597331,111920.0,111900.0,0.37846]
[1760148394223,0.41672551,111920.0,111900.0,0.37846]
[1760148394426,0.50596881,111920.0,111900.0,0.37846]
[1760148394621,0.86676881,111920.0,111900.0,0.01766]
[1760148394822,0.0892502,111910.0,111900.0,0.01766]
[1760148395326,0.3608,111930.0,111920.0,0.01766]
[1760148395523,0.3608,111940.0,111920.0,0.50846]
[1760148395725,0.50592931,111970.0,111940.0,0.01766]
[1760148395924,0.50593621,111960.0,111940.0,0.01766]
[1760148396125,0.50593621,111960.0,111940.0,0.37846]
[1760148396321,0.0892107,111960.0,111940.0,0.37846]
[1760148396527,0.0892263,111940.0,111930.0,0.3608]
[1760148396724,0.3608,111950.0,111940.0,0.01766]
[1760148396930,0.41672551,111950.0,111940.0,0.01766]
[1760148397128,0.41672551,111950.0,111930.0,0.3608]
[1760148397129,0.81672551,111950.0,111930.0,0.3608]
[1760148397328,1.26675221,111940.0,111920.0,0.37846]
[1760148397632,0.86675221,111940.0,111920.0,0.01766]
[1760148397822,0.86675221,111940.0,111900.0,0.01766]
[1760148397823,0.0892422,111920.0,111900.0,0.01766]
[1760148398024,0.0892422,111920.0,111890.0,0.3608]
[1760148398025,0.41672551,111910.0,111890.0,0.3608]
[1760148398229,0.50598641,111900.0,111880.0,0.01766]
[1760148398526,0.41672551,111890.0,111870.0,0.3608]
[1760148398720,0.41672551,111930.0,111900.0,0.0175]
[1760148398926,0.41672551,111930.0,111900.0,0.3783]
[1760148399234,0.001,111920.0,111910.0,0.3608]
[1760148399424,0.001,111920.0,111910.0,0.7516]
[1760148399724,0.001,111920.0,111910.0,0.3608]
[1760148399926,0.3608,111950.0,111940.0,0.0175]
[1760148400128,0.0892104,111960.0,111940.0,0.0175]
[1760148400331,0.41672551,111950.0,111940.0,0.0175]
[1760148400830,1.26674381,111950.0,111940.0,0.0175]
[1760148401019,0.7608,111950.0,111940.0,0.0175]
[1760148401224,0.81672551,111950.0,111940.0,0.0175]
[1760148401423,0.3608,111990.0,111960.0,0.0175]
[1760148401620,0.77752551,111980.0,111960.0,0.0175]
[1760148401822,0.41672551,111980.0,111960.0,0.0175]
[1760148402022,0.3608,111990.0,111960.0,0.3783]
[1760148402235,0.4499706,112010.0,111980.0,0.0175]
[1760148402535,0.41672551,112000.0,111980.0,0.3783]
[1760148402723,0.3922792,112030.0,112000.0,0.0175]
[1760148402924,0.41672551,112050.0,112020.0,0.3783]
[1760148403128,0.41672551,112060.0,112040.0,0.0175]
[1760148403326,0.3608,112070.0,112050.0,0.3608]
[1760148403729,0.77752551,112080.0,112060.0,0.0175]
[1760148403927,0.4499177,112080.0,112040.0,0.3783]
[1760148404126,0.3608,112080.0,112060.0,0.3783]
[1760148404325,0.3608,112090.0,112080.0,0.0175]
[1760148404526,0.3608,112090.0,112080.0,0.0059033]
[1760148404722,0.77752551,112100.0,112080.0,0.3667033]
[1760148404928,0.86662531,112100.0,112080.0,0.0059033]
[1760148405221,0.8499069,112090.0,112080.0,0.0059033]
[1760148405622,0.8519069,112090.0,112080.0,0.0059033]
[1760148405823,0.0891387,112050.0,112040.0,0.0175]
[1760148406023,0.0891475,112040.0,112020.0,0.00299689]
[1760148406336,0.4499256,112070.0,112040.0,0.0175]
[1760148406530,0.3608,112070.0,112040.0,0.3783]
[1760148406735,0.4499233,112070.0,112040.0,0.3783]
[1760148407034,0.3608,112070.0,112040.0,0.3783]
[1760148407338,0.0891327,112060.0,112040.0,0.3783]
[1760148407530,0.4499247,112070.0,112040.0,0.3783]
[1760148407735,0.002,112090.0,112060.0,0.3608]
[1760148408035,0.002,112090.0,112020.0,0.00299689]
[1760148408036,0.001,112050.0,112030.0,0.3608]
[1760148408335,0.0891574,112040.0,112020.0,0.36379689]
[1760148408730,0.8065457,112050.0,112000.0,0.3783]
[1760148409031,0.0891722,112020.0,112000.0,0.0175]
[1760148409229,0.0891795,112010.0,112000.0,0.0175]
[1760148409431,0.0891931,112000.0,111980.0,0.01760451]
[1760148409731,0.0891954,111990.0,111980.0,0.37840451]
[1760148410033,0.4499889,112000.0,111980.0,0.01760451]
[1760148410233,0.0891954,111990.0,111980.0,0.00010451]
[1760148410628,0.4499895,112000.0,111980.0,0.00010451]
[1760148410827,0.4499954,111990.0,111980.0,0.00010451]
[1760148411132,0.4499891,112000.0,111980.0,0.00010451]
[1760148411435,0.4499891,112000.0,111980.0,0.01776451]
[1760148411734,0.0891809,112010.0,111990.0,0.3608]
[1760148412036,0.3608,112030.0,112000.0,0.37846]
[1760148412331,0.4499572,112040.0,112020.0,0.01766]
[1760148412631,0.0891635,112030.0,112020.0,0.01066]
[1760148412836,0.0891789,112020.0,111990.0,0.3608]
[1760148413026,0.0891859,112010.0,111980.0,0.37856451]
[1760148413232,0.4499863,112010.0,111980.0,0.37856451]
[1760148413432,0.0891863,112010.0,111980.0,0.37856451]
[1760148413633,0.4499737,112020.0,111990.0,0.3608]
[1760148413930,0.0891795,112010.0,111980.0,0.37856451]
[1760148414133,0.3608,112020.0,112000.0,0.01766]
[1760148414330,0.3608,112040.0,112020.0,0.01766]
[1760148414534,0.3608,112050.0,112020.0,0.37846]
[1760148414729,0.0891371,112070.0,112040.0,0.3608]
[1760148414932,0.0891476,112050.0,112030.0,0.3608]
[1760148415134,0.4499372,112070.0,112040.0,0.01766]
[1760148415429,0.0891476,112050.0,112020.0,0.37846]
[1760148415635,0.3608,112060.0,112020.0,0.37846]
[1760148415636,0.0891556,112040.0,112020.0,0.37846]
[1760148416033,0.4499502,112050.0,112020.0,0.37846]
[1760148416334,0.4499501,112050.0,112020.0,0.37846]
[1760148416736,0.4499478,112050.0,112030.0,0.3608]
[1760148416931,0.4499556,112040.0,112020.0,0.37846]
[1760148417132,0.0891556,112040.0,112020.0,0.37846]
[1760148417331,0.4499536,112050.0,112020.0,0.37846]
[1760148417537,0.0891795,112010.0,112000.0,0.01766]
[1760148417734,0.3608,112010.0,111980.0,0.37856451]
[1760148417932,0.0891876,112000.0,111980.0,0.37856451]
[1760148418129,0.3608,112000.0,111980.0,0.37856451]
[1760148418431,0.089188,112000.0,111980.0,0.37856451]
[1760148418631,0.3608,112010.0,111980.0,0.37856451]
[1760148418837,0.4499954,111990.0,111980.0,0.00010451]